fUST/lending_fUST_20251028
["ID","MTS","AMOUNT","RATE_DAILY","PERIOD"]
[392539881,1761635452936,-500.0,0.00022465,2]
[392539882,1761635452946,-500.0,0.00022465,2]
[392539883,1761635452955,-730.78,0.00022465,2]
[392539884,1761635452964,-2634.03,0.00022465,2]
[392539885,1761635452973,-508.49726953,0.00022465,2]
[392539886,1761635452982,-500.0,0.00022465,2]
[392539887,1761635452991,-1269.87,0.00022465,2]
[392539888,1761635453000,-500.0,0.00022465,2]
[392539889,1761635453009,-1967.43,0.00022465,2]
[392539890,1761635453019,-500.0,0.00022465,2]
[392539891,1761635453028,-650.12,0.00022465,2]
[392539892,1761635453040,-486.62178889,0.00022465,2]
[392539893,1761635453049,-500.0,0.00022465,2]
[392539894,1761635453059,-512.74,0.00022465,2]
[392539895,1761635453072,-965.61,0.00022465,2]
[392539896,1761635453081,-500.0,0.00022465,2]
[392539897,1761635453091,-594.65,0.00022465,2]
[392539898,1761635453103,-744.7,0.00022465,2]
[392539899,1761635453112,-500.0,0.00022465,2]
[392539900,1761635453122,-662.78,0.00022465,2]
[392539901,1761635453131,-1987.69,0.00022465,2]
[392539902,1761635453143,-1564.86,0.00022465,2]
[392539903,1761635453152,-500.0,0.00022465,2]
[392539904,1761635453162,-1117.6,0.00022465,2]
[392539905,1761635453171,-500.0,0.00022465,2]
[392539906,1761635453181,-500.0,0.00022465,2]
[392539907,1761635453190,-500.0,0.00022465,2]
[392539908,1761635453200,-500.0,0.00022465,2]
[392539909,1761635453209,-500.0,0.00022465,2]
[392539910,1761635453218,-903.04,0.00022465,2]
[392539911,1761635453228,-2111.37,0.00022465,2]
[392539912,1761635453237,-500.0,0.00022465,2]
[392539913,1761635453247,-543.29,0.00022465,2]
[392539914,1761635453257,-626.07,0.00022465,2]
[392539915,1761635453267,-500.0,0.00022465,2]
[392539916,1761635453276,-2223.28,0.00022465,2]
[392539917,1761635453287,-500.0,0.00022465,2]
[392539918,1761635453297,-500.0,0.00022465,2]
[392539919,1761635453306,-500.0,0.00022465,2]
[392539920,1761635453316,-2843.76,0.00022465,2]
[392539921,1761635453326,-1289.34,0.00022465,2]
[392539922,1761635453335,-500.0,0.00022465,2]
[392539923,1761635453344,-475.93793166,0.00022465,2]
[392539924,1761635453354,-500.0,0.00022465,2]
[392539925,1761635453363,-630.14,0.00022465,2]
[392539926,1761635453373,-500.0,0.00022465,2]
[392539927,1761635453382,-500.0,0.00022465,2]
[392539928,1761635453392,-500.0,0.00022465,2]
[392539929,1761635453402,-4652.07,0.00022465,2]
[392539930,1761635453412,-500.0,0.00022465,2]
[392539931,1761635453422,-500.0,0.00022465,2]
[392539932,1761635453431,-715.08,0.00022465,2]
[392539933,1761635453441,-769.7,0.00022465,2]
[392539934,1761635453450,-500.0,0.00022465,2]
[392539935,1761635453459,-500.0,0.00022465,2]
[392539936,1761635453468,-505.99,0.00022465,2]
[392539937,1761635453478,-3216.82,0.00022465,2]
[392539938,1761635453487,-500.0,0.00022465,2]
[392539939,1761635453496,-500.0,0.00022465,2]
[392539940,1761635453505,-853.88,0.00022465,2]
[392539941,1761635453515,-500.0,0.00022465,2]
[392539942,1761635453524,-886.63,0.00022465,2]
[392539943,1761635453533,-500.0,0.00022465,2]
[392539944,1761635453543,-500.0,0.00022465,2]
[392539945,1761635453551,-29228.49,0.00022465,2]
[392539946,1761635453560,-2085.69,0.00022465,2]
[392539947,1761635453570,-500.0,0.00022465,2]
[392539948,1761635453579,-551.06,0.00022465,2]
[392539949,1761635453588,-500.0,0.00022465,2]
[392539950,1761635453597,-500.0,0.00022465,2]
[392539951,1761635453607,-500.0,0.00022465,2]
[392539952,1761635453615,-526.95,0.00022465,2]
[392539953,1761635453625,-500.0,0.00022465,2]
[392539954,1761635453634,-565.2,0.00022465,2]
[392539955,1761635453643,-500.0,0.00022465,2]
[392539956,1761635453652,-1012.52,0.00022465,2]
[392539957,1761635453662,-500.0,0.00022465,2]
[392539958,1761635453671,-614.58,0.00022465,2]
[392539959,1761635453680,-500.0,0.00022465,2]
[392539960,1761635453689,-684.26,0.00022465,2]
[392539961,1761635453699,-500.0,0.00022465,2]
[392539962,1761635453708,-500.0,0.00022465,2]
[392539963,1761635453718,-500.0,0.00022465,2]
[392539964,1761635453727,-500.0,0.00022465,2]
[392539965,1761635453737,-500.0,0.00022465,2]
[392539966,1761635453747,-500.0,0.00022465,2]
[392539967,1761635453756,-500.0,0.00022465,2]
[392539968,1761635453766,-735.45,0.00022465,2]
[392539969,1761635453775,-1758.47,0.00022465,2]
[392539970,1761635453785,-500.0,0.00022465,2]
[392539971,1761635453795,-500.0,0.00022465,2]
[392539972,1761635453805,-3138.8,0.00022465,2]
[392539973,1761635453815,-769.55,0.00022465,2]
[392539974,1761635453825,-500.0,0.00022465,2]
[392539975,1761635453834,-563.84,0.00022465,2]
[392539976,1761635453844,-500.0,0.00022465,2]
[392539977,1761635453853,-500.0,0.00022465,2]
[392539978,1761635453863,-500.0,0.00022465,2]
[392539979,1761635454010,-909.78,0.00022465,2]
[392539980,1761635454020,-500.0,0.00022465,2]
[392539981,1761635454029,-1183.88,0.00022465,2]
[392539982,1761635454040,-1758.37,0.00022465,2]
[392539983,1761635454049,-2123.15,0.00022465,2]
[392539984,1761635454058,-500.0,0.00022465,2]
[392539985,1761635454067,-936.49,0.00022465,2]
[392539986,1761635454077,-500.0,0.00022465,2]
[392539987,1761635454087,-1564.89,0.00022465,2]
[392539988,1761635454096,-500.0,0.00022465,2]
[392539989,1761635454105,-500.0,0.00022465,2]
[392539990,1761635454115,-500.0,0.00022465,2]
[392539991,1761635454125,-2326.74,0.00022465,2]
[392539992,1761635454134,-751.97,0.00022465,2]
[392539993,1761635454144,-862.57,0.00022465,2]
[392539994,1761635454153,-500.0,0.00022465,2]
[392539995,1761635454163,-500.0,0.00022465,2]
[392539996,1761635454172,-500.0,0.00022465,2]
[392539997,1761635454182,-500.0,0.00022465,2]
[392539998,1761635454191,-500.0,0.00022465,2]
[392539999,1761635454200,-500.0,0.00022465,2]
[392540000,1761635454210,-2586.64,0.00022465,2]
[392540001,1761635454219,-500.0,0.00022465,2]
[392540002,1761635454228,-397.46725358,0.00022465,2]
[392540003,1761635454238,-1388.81,0.00022465,2]
[392540004,1761635454247,-1962.72,0.00022465,2]
[392540005,1761635454256,-1111.55,0.00022465,2]
[392540006,1761635454265,-846.75,0.00022465,2]
[392540007,1761635454274,-500.0,0.00022465,2]
[392540008,1761635454283,-863.32,0.00022465,2]
[392540009,1761635454292,-540.08,0.00022465,2]
[392540010,1761635454302,-4371.88,0.00022465,2]
[392540011,1761635454312,-500.0,0.00022465,2]
[392540012,1761635454322,-2240.96,0.00022465,2]
[392540013,1761635454331,-500.0,0.00022465,2]
[392540014,1761635454344,-1160.89,0.00022465,2]
[392540015,1761635454354,-5928.57,0.00022465,2]
[392540016,1761635454363,-2323.44,0.00022465,2]
[392540017,1761635454373,-1791.62,0.00022465,2]
[392540018,1761635454383,-2621.46,0.00022465,2]
[392540019,1761635454391,-500.0,0.00022465,2]
[392540020,1761635454400,-500.0,0.00022465,2]
[392540021,1761635454409,-631.85,0.00022465,2]
[392540022,1761635454419,-500.0,0.00022465,2]
[392540023,1761635454428,-500.0,0.00022465,2]
[392540024,1761635454438,-975.55,0.00022465,2]
[392540025,1761635454447,-500.0,0.00022465,2]
[392540026,1761635454457,-500.0,0.00022465,2]
[392540027,1761635454466,-1186.44,0.00022465,2]
[392540028,1761635454475,-2321.63,0.00022465,2]
[392540029,1761635454484,-500.0,0.00022465,2]
[392540030,1761635454494,-936.95,0.00022465,2]
[392540031,1761635454503,-500.0,0.00022465,2]
[392540032,1761635454513,-2951.94,0.00022465,2]
[392540033,1761635454522,-1024.53,0.00022465,2]
[392540034,1761635454533,-500.0,0.00022465,2]
[392540035,1761635454542,-500.0,0.00022465,2]
[392540036,1761635454552,-500.0,0.00022465,2]
[392540037,1761635454562,-1393.7,0.00022465,2]
[392540038,1761635454571,-500.0,0.00022465,2]
[392540039,1761635454581,-263.25640455,0.00022465,2]
[392540040,1761635454591,-1915.93,0.00022465,2]
[392540041,1761635454602,-569.62,0.00022465,2]
[392540042,1761635454613,-500.0,0.00022465,2]
[392540043,1761635454623,-500.0,0.00022465,2]
[392540044,1761635454634,-715.89,0.00022465,2]
[392540045,1761635454644,-2003.25,0.00022465,2]
[392540046,1761635454653,-500.0,0.00022465,2]
[392540047,1761635454664,-614.29,0.00022465,2]
[392540048,1761635454674,-500.0,0.00022465,2]
[392540049,1761635454684,-500.0,0.00022465,2]
[392540050,1761635454693,-1493.81,0.00022465,2]
[392540051,1761635454703,-204.24698593,0.00022465,2]
[392540052,1761635454714,-1016.96,0.00022465,2]
[392540053,1761635454723,-637.23,0.00022465,2]
[392540054,1761635454733,-1173.47,0.00022465,2]
[392540055,1761635454743,-500.0,0.00022465,2]
[392540056,1761635454753,-500.0,0.00022465,2]
[392540057,1761635454763,-500.0,0.00022465,2]
[392540058,1761635454772,-1075.02,0.00022465,2]
[392540059,1761635454782,-994.98,0.00022465,2]
[392540060,1761635454791,-354.12856087,0.00022465,2]
[392540061,1761635454801,-500.0,0.00022465,2]
[392540062,1761635454810,-675.64,0.00022465,2]
[392540063,1761635454820,-1399.5,0.00022465,2]
[392540064,1761635454830,-722.95,0.00022465,2]
[392540065,1761635454840,-3537.59,0.00022465,2]
[392540066,1761635454850,-500.0,0.00022465,2]
[392540067,1761635454859,-500.0,0.00022465,2]
[392540068,1761635454868,-2387.11,0.00022465,2]
[392540069,1761635454879,-500.0,0.00022465,2]
[392540070,1761635454888,-2131.55,0.00022465,2]
[392540071,1761635454898,-500.0,0.00022465,2]
[392540072,1761635454907,-500.0,0.00022465,2]
[392540073,1761635454917,-12061.61,0.00022465,2]
[392540074,1761635454926,-781.37,0.00022465,2]
[392540075,1761635454935,-1649.47,0.00022465,2]
[392540076,1761635454945,-1002.41,0.00022465,2]
[392540077,1761635454954,-500.0,0.00022465,2]
[392540078,1761635454964,-500.0,0.00022465,2]
[392540079,1761635454973,-500.0,0.00022465,2]
[392540080,1761635454983,-500.0,0.00022465,2]
[392540081,1761635454992,-500.0,0.00022465,2]
[392540082,1761635455002,-500.0,0.00022465,2]
[392540083,1761635455013,-500.0,0.00022465,2]
[392540084,1761635455026,-1726.31,0.00022465,2]
[392540085,1761635455044,-686.19,0.00022465,2]
[392540086,1761635455061,-2475.29,0.00022465,2]
[392540087,1761635455079,-1842.19,0.00022465,2]
[392540088,1761635455096,-500.0,0.00022465,2]
[392540089,1761635455116,-500.0,0.00022465,2]
[392540090,1761635455133,-699.27,0.00022465,2]
[392540091,1761635455165,-500.0,0.00022465,2]
[392540092,1761635455190,-1551.56,0.00022465,2]
[392540093,1761635455209,-500.0,0.00022465,2]
[392540094,1761635455230,-529.25,0.00022465,2]
[392540095,1761635455252,-442.14722347,0.00022465,2]
[392540096,1761635455275,-2313.89,0.00022465,2]
[392540097,1761635455288,-2035.81,0.00022465,2]
[392540098,1761635455304,-500.0,0.00022465,2]
[392540099,1761635455321,-951.2,0.00022465,2]
[392540100,1761635455336,-500.0,0.00022465,2]
[392540101,1761635455353,-526.13,0.00022465,2]
[392540102,1761635455370,-2014.9,0.00022465,2]
[392540103,1761635455390,-500.0,0.00022465,2]
[392540104,1761635455407,-890.11,0.00022465,2]
[392540105,1761635455425,-3964.38,0.00022465,2]
[392540106,1761635455442,-1023.23,0.00022465,2]
[392540107,1761635455458,-500.0,0.00022465,2]
[392540108,1761635455475,-500.0,0.00022465,2]
[392540109,1761635455490,-500.0,0.00022465,2]
[392540110,1761635455506,-2909.37,0.00022465,2]
[392540111,1761635455522,-500.0,0.00022465,2]
[392540112,1761635455540,-500.0,0.00022465,2]
[392540113,1761635455555,-500.0,0.00022465,2]
[392540114,1761635455568,-2874.27,0.00022465,2]
[392540115,1761635455584,-2741.75,0.00022465,2]
[392540116,1761635455600,-500.0,0.00022465,2]
[392540117,1761635455613,-500.0,0.00022465,2]
[392540118,1761635455627,-500.0,0.00022465,2]
[392540119,1761635455642,-1318.04,0.00022465,2]
[392540120,1761635455657,-500.0,0.00022465,2]
[392540121,1761635455671,-500.0,0.00022465,2]
[392540122,1761635455684,-500.0,0.00022465,2]
[392540123,1761635455699,-1545.04,0.00022465,2]
[392540124,1761635455713,-679.39,0.00022465,2]
[392540125,1761635455727,-500.0,0.00022465,2]
[392540126,1761635455741,-609.24,0.00022465,2]
[392540127,1761635455756,-3883.37,0.00022465,2]
[392540128,1761635455769,-1588.65,0.00022465,2]
[392540129,1761635455784,-500.0,0.00022465,2]
[392540130,1761635455798,-500.0,0.00022465,2]
[392540131,1761635455815,-500.0,0.00022465,2]
[392540132,1761635455830,-500.0,0.00022465,2]
[392540133,1761635455843,-5972.25,0.00022465,2]
[392540134,1761635455857,-500.0,0.00022465,2]
[392540135,1761635455872,-500.0,0.00022465,2]
[392540136,1761635455888,-2782.69,0.00022465,2]
[392540137,1761635455904,-1281.17,0.00022465,2]
[392540138,1761635455918,-500.0,0.00022465,2]
[392540139,1761635455932,-500.0,0.00022465,2]
[392540140,1761635455947,-500.0,0.00022465,2]
[392540141,1761635455961,-500.0,0.00022465,2]
[392540142,1761635455976,-500.0,0.00022465,2]
[392540143,1761635455992,-500.0,0.00022465,2]
[392540144,1761635456006,-551.02,0.00022465,2]
[392540145,1761635456022,-333.49516101,0.00022465,2]
[392540146,1761635456037,-786.84,0.00022465,2]
[392540147,1761635456051,-750.43,0.00022465,2]
[392540148,1761635456068,-500.0,0.00022465,2]
[392540149,1761635456082,-500.0,0.00022465,2]
[392540150,1761635456095,-3198.47,0.00022465,2]
[392540151,1761635456110,-500.0,0.00022465,2]
[392540152,1761635456124,-382.06062925,0.00022465,2]
[392540153,1761635456139,-858.33,0.00022465,2]
[392540154,1761635456153,-683.28,0.00022465,2]
[392540155,1761635456167,-1378.5,0.00022465,2]
[392540156,1761635456183,-2587.33,0.00022465,2]
[392540157,1761635456197,-500.0,0.00022465,2]
[392540158,1761635456212,-799.95,0.00022465,2]
[392540159,1761635456226,-543.47,0.00022465,2]
[392540160,1761635456240,-500.0,0.00022465,2]
[392540161,1761635456254,-584.93779226,0.00022465,2]
[392540162,1761635456268,-500.0,0.00022465,2]
[392540163,1761635456282,-500.0,0.00022465,2]
[392540164,1761635456296,-1913.07,0.00022465,2]
[392540165,1761635456310,-500.0,0.00022465,2]
[392540166,1761635456325,-649.31,0.00022465,2]
[392540167,1761635456338,-1884.93,0.00022465,2]
[392540168,1761635456352,-860.49,0.00022465,2]
[392540169,1761635456365,-3561.46,0.00022465,2]
[392540170,1761635456381,-4199.74,0.00022465,2]
[392540171,1761635456396,-3355.11,0.00022465,2]
[392540172,1761635456410,-664.29,0.00022465,2]
[392540173,1761635456424,-217.92651997,0.00022465,2]
[392540174,1761635456438,-500.0,0.00022465,2]
[392540175,1761635456452,-500.0,0.00022465,2]
[392540176,1761635456465,-1833.01,0.00022465,2]
[392540177,1761635456479,-609.22,0.00022465,2]
[392540178,1761635456489,-500.0,0.00022465,2]
[392540179,1761635456500,-899.79,0.00022465,2]
[392540180,1761635456509,-935.9,0.00022465,2]
[392540181,1761635456518,-500.0,0.00022465,2]
[392540182,1761635456528,-500.0,0.00022465,2]
[392540183,1761635456539,-500.0,0.00022465,2]
[392540184,1761635456548,-1821.5,0.00022465,2]
[392540185,1761635456557,-500.0,0.00022465,2]
[392540186,1761635456567,-902.01,0.00022465,2]
[392540187,1761635456577,-831.98,0.00022465,2]
[392540188,1761635456588,-500.0,0.00022465,2]
[392540189,1761635456876,-500.0,0.00022465,2]
[392540190,1761635456899,-500.0,0.00022465,2]
[392540191,1761635456910,-152.97939141,0.00022473,2]
[392540192,1761635456919,-162.06274826,0.00022473,2]
[392540193,1761635456928,-1022.90200428,0.000225,2]
[392540194,1761635456938,-250.0,0.000225,2]
[392540195,1761635456947,-250.0,0.000225,2]
[392540196,1761635456956,-250.0,0.000225,2]
[392540197,1761635456966,-250.0,0.000225,2]
[392540198,1761635456977,-250.0,0.000225,2]
[392540199,1761635456987,-173.5,0.000225,2]
[392540200,1761635456997,-160.0,0.000225,2]
[392540201,1761635457008,-203.0,0.0002254,5]
[392540202,1761635457017,-501.15877118,0.00022721,2]
[392540203,1761635457026,-1000.0,0.00022721,2]
[392540204,1761635457037,-1000.0,0.00022721,2]
[392540205,1761635457046,-1000.0,0.00022721,2]
[392540206,1761635457056,-329.74264923,0.00022721,2]
[392540207,1761635457070,-1000.0,0.00022721,2]
[392540208,1761635457079,-1000.0,0.00022721,2]
[392540209,1761635457090,-1000.0,0.00022721,2]
[392540210,1761635457101,-1000.0,0.00022721,2]
[392540211,1761635457112,-1000.0,0.00022721,2]
[392540212,1761635457123,-1000.0,0.00022721,2]
[392540213,1761635457135,-1000.0,0.00022721,2]
[392540214,1761635457147,-1000.0,0.00022721,2]
[392540215,1761635457158,-1000.0,0.00022721,2]
[392540216,1761635457167,-1000.0,0.00022721,2]
[392540217,1761635457177,-1000.0,0.00022721,2]
[392540218,1761635457186,-1000.0,0.00022721,2]
[392540219,1761635457195,-1000.0,0.00022721,2]
[392540220,1761635457205,-1000.0,0.00022721,2]
[392540221,1761635457214,-314.66075487,0.00022721,2]
[392540222,1761635457224,-1000.0,0.00022721,2]
[392540223,1761635457234,-1000.0,0.00022721,2]
[392540224,1761635457243,-1000.0,0.00022721,2]
[392540225,1761635457253,-1000.0,0.00022721,2]
[392540226,1761635457262,-1000.0,0.00022721,2]
[392540227,1761635457273,-1000.0,0.00022721,2]
[392540228,1761635457284,-1000.0,0.00022721,2]
[392540229,1761635457294,-1000.0,0.00022721,2]
[392540230,1761635457303,-1000.0,0.00022721,2]
[392540231,1761635457312,-1000.0,0.00022721,2]
[392540232,1761635457322,-727.53494812,0.00022721,2]
[392540233,1761635457331,-1000.0,0.00022721,2]
[392540234,1761635457340,-1000.0,0.00022721,2]
[392540235,1761635457350,-1000.0,0.00022721,2]
[392540236,1761635457359,-1000.0,0.00022721,2]
[392540237,1761635457368,-423.15223557,0.00022721,2]
[392540238,1761635457377,-1000.0,0.00022721,2]
[392540239,1761635457386,-1000.0,0.00022721,2]
[392540240,1761635457395,-1000.0,0.00022721,2]
[392540241,1761635457405,-1000.0,0.00022721,2]
[392540242,1761635457415,-1000.0,0.00022721,2]
[392540243,1761635457425,-1000.0,0.00022721,2]
[392540244,1761635457435,-1000.0,0.00022721,2]
[392540245,1761635457444,-1000.0,0.00022721,2]
[392540246,1761635457454,-1000.0,0.00022721,2]
[392540247,1761635457465,-831.13417876,0.00022721,2]
[392540248,1761635457475,-1000.0,0.00022721,2]
[392540249,1761635457485,-1000.0,0.00022721,2]
[392540250,1761635457495,-500.0,0.00022739,2]
[392540251,1761635457505,-959.62,0.00022739,2]
[392540252,1761635457515,-500.0,0.00022739,2]
[392540253,1761635457524,-500.0,0.00022739,2]
[392540254,1761635457534,-247.36502952,0.00022739,2]
[392540255,1761635457543,-500.0,0.00022739,2]
[392540256,1761635457552,-500.0,0.00022739,2]
[392540257,1761635457561,-500.0,0.00022739,2]
[392540258,1761635457570,-500.0,0.00022739,2]
[392540259,1761635457579,-220.24837476,0.00022739,2]
[392540260,1761635457588,-500.0,0.00022739,2]
[392540261,1761635457597,-558.36457649,0.00022739,2]
[392540262,1761635457606,-1690.05,0.00022739,2]
[392540263,1761635457616,-500.0,0.00022739,2]
[392540264,1761635457625,-500.0,0.00022739,2]
[392540265,1761635457634,-467.73449324,0.00022739,2]
[392540266,1761635457644,-500.0,0.00022739,2]
[392540267,1761635457653,-500.0,0.00022739,2]
[392540268,1761635457663,-500.0,0.00022739,2]
[392540269,1761635457672,-715.75,0.00022739,2]
[392540270,1761635457682,-500.0,0.00022739,2]
[392540271,1761635457691,-500.0,0.00022739,2]
[392540272,1761635457701,-500.0,0.00022739,2]
[392540273,1761635457710,-500.0,0.00022739,2]
[392540274,1761635457719,-603.19,0.00022739,2]
[392540275,1761635457729,-500.0,0.00022739,2]
[392540276,1761635457738,-500.0,0.00022739,2]
[392540277,1761635457749,-1127.61,0.00022739,2]
[392540278,1761635457759,-530.38,0.00022739,2]
[392540279,1761635457769,-223.44878153,0.00022739,2]
[392540280,1761635457779,-500.0,0.00022739,2]
[392540281,1761635457789,-634.37,0.00022739,2]
[392540282,1761635457799,-500.0,0.00022739,2]
[392540283,1761635457808,-500.0,0.00022739,2]
[392540284,1761635457820,-500.0,0.00022739,2]
[392540285,1761635457830,-298.79967442,0.00022739,2]
[392540286,1761635457840,-1000.0,0.00022739,2]
[392540287,1761635457850,-500.0,0.00022739,2]
[392540288,1761635457859,-500.0,0.00022739,2]
[392540289,1761635457869,-638.18,0.00022739,2]
[392540290,1761635457879,-500.0,0.00022739,2]
[392540291,1761635457889,-1152.11,0.00022739,2]
[392540292,1761635457898,-500.0,0.00022739,2]
[392540293,1761635457907,-708.47,0.00022739,2]
[392540294,1761635457917,-1290.55,0.00022739,2]
[392540295,1761635457926,-537.33,0.00022739,2]
[392540296,1761635457937,-556.59,0.00022739,2]
[392540297,1761635457949,-584.67,0.00022739,2]
[392540298,1761635457960,-500.0,0.00022739,2]
[392540299,1761635457972,-500.0,0.00022739,2]
[392540300,1761635457981,-500.0,0.00022739,2]
[392540301,1761635457991,-500.0,0.00022739,2]
[392540302,1761635458003,-741.13,0.00022739,2]
[392540303,1761635458013,-500.0,0.00022739,2]
[392540304,1761635458022,-500.0,0.00022739,2]
[392540305,1761635458034,-500.0,0.00022739,2]
[392540306,1761635458045,-1281.8,0.00022739,2]
[392540307,1761635458054,-500.0,0.00022739,2]
[392540308,1761635458064,-500.0,0.00022739,2]
[392540309,1761635458075,-500.0,0.00022739,2]
[392540310,1761635458084,-500.0,0.00022739,2]
[392540311,1761635458094,-511.97405741,0.00022739,2]
[392540312,1761635458103,-500.0,0.00022739,2]
[392540313,1761635458112,-500.0,0.00022739,2]
[392540314,1761635458122,-500.0,0.00022739,2]
[392540315,1761635458131,-500.0,0.00022739,2]
[392540316,1761635458140,-500.0,0.00022739,2]
[392540317,1761635458149,-500.0,0.00022739,2]
[392540318,1761635458160,-500.0,0.00022739,2]
[392540319,1761635458169,-991.69,0.00022739,2]
[392540320,1761635458179,-500.0,0.00022739,2]
[392540321,1761635458188,-1202.42,0.00022739,2]
[392540322,1761635458197,-500.0,0.00022739,2]
[392540323,1761635458207,-500.0,0.00022739,2]
[392540324,1761635458216,-500.0,0.00022739,2]
[392540325,1761635458225,-500.0,0.00022739,2]
[392540326,1761635458235,-569.6,0.00022739,2]
[392540327,1761635458244,-560.72,0.00022739,2]
[392540328,1761635458254,-500.0,0.00022739,2]
[392540329,1761635458263,-500.0,0.00022739,2]
[392540330,1761635458272,-500.0,0.00022739,2]
[392540331,1761635458281,-596.63,0.00022739,2]
[392540332,1761635458291,-500.0,0.00022739,2]
[392540333,1761635458300,-500.0,0.00022739,2]
[392540334,1761635458310,-500.0,0.00022739,2]
[392540335,1761635458319,-1041.06,0.00022739,2]
[392540336,1761635458330,-500.0,0.00022739,2]
[392540337,1761635458340,-707.6,0.00022739,2]
[392540338,1761635458351,-500.0,0.00022739,2]
[392540339,1761635458362,-500.0,0.00022739,2]
[392540340,1761635458372,-500.0,0.00022739,2]
[392540341,1761635458382,-500.0,0.00022739,2]
[392540342,1761635458391,-500.0,0.00022739,2]
[392540343,1761635458401,-740.89,0.00022739,2]
[392540344,1761635458411,-500.0,0.00022739,2]
[392540345,1761635458422,-729.78,0.00022739,2]
[392540346,1761635458432,-554.86,0.00022739,2]
[392540347,1761635458442,-1476.19,0.00022739,2]
[392540348,1761635458455,-500.0,0.00022739,2]
[392540349,1761635458464,-955.14,0.00022739,2]
[392540350,1761635458474,-663.08,0.00022739,2]
[392540351,1761635458485,-500.0,0.00022739,2]
[392540352,1761635458496,-1193.15,0.00022739,2]
[392540353,1761635458506,-828.34,0.00022739,2]
[392540354,1761635458515,-500.0,0.00022739,2]
[392540355,1761635458525,-500.0,0.00022739,2]
[392540356,1761635458536,-1527.13,0.00022739,2]
[392540357,1761635458546,-500.0,0.00022739,2]
[392540358,1761635458555,-500.0,0.00022739,2]
[392540359,1761635458564,-500.0,0.00022739,2]
[392540360,1761635458573,-1186.35,0.00022739,2]
[392540361,1761635458583,-500.0,0.00022739,2]
[392540362,1761635458592,-846.87,0.00022739,2]
[392540363,1761635458602,-500.0,0.00022739,2]
[392540364,1761635458611,-500.0,0.00022739,2]
[392540365,1761635458620,-339.99499799,0.00022739,2]
[392540366,1761635458630,-500.0,0.00022739,2]
[392540367,1761635458639,-2295.33,0.00022739,2]
[392540368,1761635458649,-500.0,0.00022739,2]
[392540369,1761635458658,-500.0,0.00022739,2]
[392540370,1761635458668,-598.96,0.00022739,2]
[392540371,1761635458677,-500.0,0.00022739,2]
[392540372,1761635458686,-826.63,0.00022739,2]
[392540373,1761635458695,-908.14,0.00022739,2]
[392540374,1761635458705,-508.7956149,0.00022739,2]
[392540375,1761635458714,-500.0,0.00022739,2]
[392540376,1761635458724,-500.0,0.00022739,2]
[392540377,1761635458739,-500.0,0.00022739,2]
[392540378,1761635458750,-500.0,0.00022739,2]
[392540379,1761635458760,-500.0,0.00022739,2]
[392540380,1761635458770,-263.83208191,0.00022739,2]